bitfinex/quotes_SOLUSD_20251013
["timestamp","ask_amount","ask_price","bid_price","bid_amount"]
[1760323859776,20.8,197.03,196.98,10.32623428]
[1760323859972,10.99623428,197.02,196.95,43.75816197]
[1760323860174,20.8,197.03,196.95,43.75816197]
[1760323860372,31.12623428,197.03,196.95,43.75816197]
[1760323860976,10.32623428,196.99,196.95,17.77100787]
[1760323861181,10.32623428,197.01,196.95,17.77100787]
[1760323861583,0.67,197.0,196.95,17.77100787]
[1760323861892,10.99623428,196.99,196.95,5.07743082]
[1760323862073,10.32623428,196.96,196.95,5.07743082]
[1760323862274,10.32623428,196.96,196.92,12.6952537]
[1760323862579,10.99623428,196.96,196.92,12.6952537]
[1760323862893,10.32623428,196.94,196.9,5.07872016]
[1760323863195,10.32623428,196.92,196.9,5.07872016]
[1760323863864,0.10173405,196.91,196.9,5.07872016]
[1760323864068,0.77173405,196.91,196.9,5.07872016]
[1760323864268,0.77173405,196.91,196.84,17.78093882]
[1760323864486,10.32623428,196.89,196.84,17.78093882]
[1760323864679,0.67,196.88,196.84,17.78093882]
[1760323864870,10.32623428,196.87,196.84,17.78093882]
[1760323865095,10.99623428,196.87,196.84,17.78093882]
[1760323865303,0.67,196.86,196.84,5.08026823]
[1760323865489,10.99623428,196.85,196.83,5.08051038]
[1760323865690,0.67,196.84,196.83,5.08051038]
[1760323865887,0.67,196.84,196.82,4.88]
[1760323866107,10.99623428,196.83,196.82,4.88]
[1760323866605,10.99623428,196.83,196.81,5.08101854]
[1760323866804,10.32623428,196.83,196.81,5.08101854]
[1760323866987,10.99623428,196.83,196.81,5.08101854]
[1760323867490,10.32623428,196.83,196.81,5.08101854]
[1760323867805,20.8,196.81,196.8,0.2]
[1760323868111,31.12623428,196.81,196.8,0.2]
[1760323868298,31.79623428,196.81,196.8,0.2]
[1760323868602,21.47,196.81,196.8,5.28130081]
[1760323868805,31.79623428,196.81,196.8,5.28130081]
[1760323869027,31.79623428,196.81,196.8,0.2]
[1760323870921,42.67270949,196.81,196.8,0.2]
[1760323872497,20.8,196.82,196.8,5.28130081]
[1760323872696,10.32623428,196.81,196.8,0.2]
[1760323873722,10.32623428,196.81,196.8,5.28130081]
[1760323874224,10.32623428,196.81,196.8,0.2]
[1760323874429,10.99623428,196.81,196.8,0.2]
[1760323876115,0.67,196.83,196.8,5.28130081]
[1760323876308,4.08161577,196.88,196.8,5.28130081]
[1760323876615,10.32623428,196.86,196.8,17.98455284]
[1760323877016,10.32623428,196.82,196.8,0.2]
[1760323877617,10.99623428,196.82,196.8,0.2]
[1760323878116,10.99623428,196.82,196.8,5.28119796]
[1760323878514,154.8,196.85,196.8,5.88119796]
[1760323878819,10.99623428,196.84,196.8,17.98444999]
[1760323879416,0.67,196.84,196.8,17.98444999]
[1760323879612,154.8,196.85,196.8,17.98444999]
[1760323879813,165.12623428,196.85,196.8,18.58444999]
[1760323880116,0.67,196.84,196.8,17.98444999]
[1760323880317,10.99623428,196.83,196.8,5.28119796]
[1760323880720,154.8,196.85,196.8,5.88119796]
[1760323880924,165.79623428,196.85,196.8,5.28119796]
[1760323881223,155.47,196.85,196.8,5.28119796]
[1760323882106,154.8,196.85,196.81,0.6]
[1760323882310,154.8,196.85,196.8,28.31068427]
[1760323882509,155.47,196.85,196.8,17.98444999]
[1760323883605,21.47,196.85,196.8,17.98444999]
[1760323883807,0.09713859,196.81,196.8,17.98444999]
[1760323885508,0.10713398,196.82,196.8,18.58444999]
[1760323885698,0.10713398,196.82,196.8,17.98444999]
[1760323886327,0.10713398,196.82,196.8,28.31068427]
[1760323886531,0.10713398,196.82,196.8,28.91068427]
[1760323887306,0.10713398,196.82,196.81,10.32623428]
[1760323887626,0.10713398,196.82,196.8,17.98444999]
[1760323888836,0.10713398,196.82,196.81,10.32623428]
[1760323889046,0.09400303,196.83,196.82,15.40701875]
[1760323889212,1e-08,196.84,196.82,5.08078447]
[1760323889412,1e-08,196.84,196.83,10.32623428]
[1760323889635,1e-08,196.84,196.83,10.92623428]
[1760323890235,1e-08,196.84,196.82,5.08078447]
[1760323890540,1e-08,196.84,196.83,10.32623428]
[1760323891634,1e-08,196.84,196.83,9.41942129]
[1760323892928,1e-08,196.84,196.83,5.08052634]
[1760323893135,1e-08,196.84,196.83,9.41942129]
[1760323894052,1e-08,196.85,196.83,10.01942129]
[1760323894226,1e-08,196.89,196.84,4.93889495]
[1760323894426,1e-08,196.89,196.88,4.33889495]
[1760323895343,1e-08,196.89,196.88,9.41813103]
[1760323896722,0.68000001,196.89,196.88,5.07923608]
[1760323897126,5.01889496,196.89,196.88,5.07923608]
[1760323897524,5.01889496,196.89,196.83,12.70108065]
[1760323897831,4.33889495,196.86,196.83,12.70108065]
[1760323898026,4.33889495,196.84,196.81,5.08104262]
[1760323898351,4.33889495,196.83,196.81,5.08104262]
[1760323898554,5.01889495,196.82,196.8,0.2]
[1760323898727,4.33889495,196.81,196.8,0.2]
[1760323898925,4.33889495,196.81,196.8,5.28130081]
[1760323899118,5.01889495,196.81,196.8,5.28130081]
[1760323899630,11.03235289,196.81,196.8,5.28130081]
[1760323899831,0.68,196.81,196.8,5.28130081]
[1760323900034,21.48,196.81,196.8,5.28130081]
[1760323900233,0.68,196.85,196.8,17.98455284]
[1760323900429,20.8,196.86,196.82,10.35235289]
[1760323900830,21.48,196.86,196.83,17.78184219]
[1760323901842,0.68,196.85,196.83,12.70131585]
[1760323902148,0.68,196.84,196.82,5.08078447]
[1760323902349,0.68,196.83,196.82,5.08078447]
[1760323902637,0.68,196.84,196.82,5.08078447]
[1760323902848,20.8,196.86,196.82,17.78274565]
[1760323903057,21.48,196.86,196.82,17.78274565]
[1760323903240,0.68,196.85,196.82,17.78274565]
[1760323903855,0.10747698,196.83,196.82,17.78274565]
[1760323904059,0.10747698,196.83,196.82,12.70196118]
[1760323905642,0.10438504,196.84,196.82,12.70196118]
[1760323905844,0.10059841,196.87,196.83,10.95235289]
[1760323906054,1e-08,196.87,196.86,10.35235289]
[1760323906230,1e-08,196.9,196.86,10.35235289]
[1760323906429,1e-08,196.9,196.89,10.35235289]
[1760323906929,1e-08,196.9,196.89,10.95235289]
[1760323907335,1e-08,196.9,196.89,16.03133099]
[1760323907831,1e-08,196.92,196.89,28.72877626]
[1760323908031,1e-08,196.92,196.91,10.35235289]
[1760323908543,1e-08,196.92,196.91,10.95235289]
[1760323909347,1e-08,196.92,196.91,16.03081513]
[1760323910364,1e-08,196.92,196.91,26.90729034]
[1760323910859,1e-08,196.92,196.91,16.55493745]
[1760323911066,1e-08,196.92,196.91,26.90729034]
[1760323911764,3.97871035,197.07,196.91,26.90729034]
[1760323911765,0.7,197.06,196.95,10.87647521]
[1760323911956,10.35235289,197.1,197.05,10.35235289]
[1760323911957,0.7,197.1,197.05,10.35235289]
[1760323912159,0.7,197.1,197.08,10.35235289]
[1760323912851,0.7,197.09,197.02,0.6]
[1760323913160,0.7,197.09,197.08,10.35235289]
[1760323913658,0.7,197.09,197.07,15.42669195]
[1760323913861,0.1,197.13,197.07,28.11253961]
[1760323914043,0.7,197.11,197.08,10.35235289]
[1760323914244,0.1,197.13,197.09,10.35235289]
[1760323914557,20.9,197.13,197.09,10.35235289]
[1760323914750,0.69,197.12,197.09,10.35235289]
[1760323914968,0.69,197.12,197.1,10.35235289]
[1760323915462,0.69,197.11,197.07,17.76018672]
[1760323915662,0.69,197.1,197.07,17.76018672]
[1760323915859,0.69,197.09,197.07,17.76018672]
[1760323916046,20.9,197.13,197.07,17.76018672]
[1760323916252,0.69,197.12,197.08,10.35235289]
[1760323916553,0.69,197.11,197.08,10.35235289]
[1760323916748,20.9,197.13,197.07,17.76018672]
[1760323916949,0.69,197.1,197.07,17.76018672]
[1760323917451,0.69,197.09,197.07,17.76018672]
[1760323917846,0.69,197.09,197.05,10.35235289]
[1760323918462,0.69,197.09,197.06,10.35235289]
[1760323918765,11.04235289,197.08,197.02,17.76469392]
[1760323918966,0.69,197.07,197.02,17.76469392]
[1760323919267,0.69,197.06,197.02,17.76469392]
[1760323919765,0.69,197.05,197.02,17.76469392]
[1760323919963,0.69,197.04,197.0,6.93030871]
[1760323920145,21.49,197.07,197.03,6.93030871]
[1760323920454,20.8,197.05,197.04,6.93030871]
[1760323920765,20.8,197.05,197.03,6.93030871]
[1760323921759,0.69,197.05,197.01,6.93030871]
[1760323922058,20.8,197.05,197.02,17.76469392]
[1760323922862,0.69,197.07,197.02,17.76469392]
[1760323923070,20.8,197.06,197.02,17.76469392]
[1760323923364,21.49,197.06,197.02,17.76469392]
[1760323923744,0.10703196,197.03,197.02,17.76469392]
[1760323923968,0.09178231,197.04,197.02,17.76469392]
[1760323924157,0.10360877,197.06,197.02,17.76469392]
[1760323924158,0.69,197.16,197.03,25.75462955]
[1760323924471,0.69,197.16,197.09,6.93030871]
[1760323925559,0.79818316,197.1,197.09,5.07382414]
[1760323926652,0.10818316,197.1,197.06,6.93030871]
[1760323926850,21.49,197.09,197.04,43.13844904]
[1760323927048,20.8,197.09,197.04,24.69319949]
[1760323927253,21.49,197.09,197.04,24.69319949]
[1760323928558,21.49,197.09,197.04,17.76289078]
[1760323929673,0.10818316,197.1,197.07,6.93030871]
[1760323930670,0.10818316,197.1,197.08,5.07408159]
[1760323931171,0.69,197.09,197.08,5.07408159]
[1760323932561,0.10818316,197.1,197.07,12.68560094]
[1760323932773,0.79818316,197.1,197.07,12.68560094]
[1760323933461,0.10818316,197.1,197.07,12.68560094]
[1760323933785,0.69,197.09,197.07,12.68560094]
[1760323933957,0.69,197.08,197.05,17.76198933]
[1760323934272,0.69,197.07,197.05,17.76198933]
[1760323934654,0.69,197.06,197.0,17.76649745]
[1760323934854,0.69,197.06,197.0,24.69680616]
[1760323935479,0.69,197.06,197.0,50.07751681]
[1760323935682,0.69,197.06,197.01,6.93030871]
[1760323938181,0.10818316,197.1,197.05,6.93030871]
[1760323938665,0.10818316,197.1,197.05,7.34030871]
[1760323939065,0.10818316,197.1,197.06,6.93030871]
[1760323940083,0.10818316,197.1,197.06,17.76108798]
[1760323942890,0.79818316,197.1,197.06,17.76108798]
[1760323943888,0.10829209,197.07,197.06,17.76108798]
[1760323944593,0.10829209,197.07,197.06,18.17108798]
[1760323944778,0.10829209,197.07,197.06,17.76108798]
[1760323947996,1e-08,197.08,197.06,25.10139669]
[1760323948175,1e-08,197.08,197.07,6.93030871]
[1760323948371,1e-08,197.08,197.06,25.10139669]
[1760323948597,1e-08,197.08,197.06,17.76108798]
[1760323948800,0.72,197.07,197.06,17.76108798]
[1760323948987,7.65030871,197.07,197.06,17.76108798]
[1760323950300,7.65030871,197.07,197.06,5.07459656]
[1760323950673,7.65030871,197.07,197.03,12.68786954]
[1760323950674,7.65030871,197.07,196.99,17.76739935]
[1760323950975,0.72,197.06,196.99,17.76739935]
[1760323951585,0.72,197.05,196.99,43.14939843]
[1760323952202,0.72,197.05,196.99,50.07970714]
[1760323952403,20.8,197.01,196.99,5.07639981]
[1760323952611,0.72,197.0,196.94,25.38760144]
[1760323952816,6.93030871,196.99,196.95,12.69341521]
[1760323953104,6.93030871,196.99,196.94,5.07768863]
[1760323953105,6.93030871,196.96,196.94,5.07768863]
[1760323953475,6.93030871,196.97,196.94,5.07768863]
[1760323953695,7.65030871,196.96,196.94,5.07768863]
[1760323953891,20.8,196.99,196.95,7.34030871]
[1760323954106,0.72,197.02,196.96,6.93030871]
[1760323954481,7.65030871,197.02,196.95,6.93030871]
[1760323955000,6.93030871,197.0,196.96,17.7701056]
[1760323955492,0.72,196.99,196.96,17.7701056]
[1760323955895,7.65030871,197.01,196.96,17.7701056]
[1760323956095,6.93030871,197.01,196.96,17.7701056]
[1760323956401,0.72,197.0,196.96,17.7701056]
[1760323956608,6.93030871,196.97,196.96,5.07717303]
[1760323956786,6.93030871,196.97,196.89,7.34030871]
[1760323956787,7.65030871,196.97,196.9,17.77552056]
[1760323957106,6.93030871,196.96,196.9,17.77552056]
[1760323958799,7.65030871,196.96,196.9,17.77552056]
[1760323959681,20.8,196.96,196.9,17.77552056]
[1760323959888,6.93030871,196.94,196.9,17.77552056]
[1760323960288,0.72,196.93,196.9,17.77552056]
[1760323961707,0.72,196.93,196.88,25.39517768]
[1760323962109,0.72,196.92,196.88,25.39517768]
[1760323962409,7.65030871,196.94,196.88,25.39517768]
[1760323963106,134.0,196.95,196.91,6.93030871]
[1760323963602,134.72,196.95,196.89,3.185105]
[1760323963791,0.10193806,196.92,196.9,17.77552056]
[1760323964809,0.72,196.91,196.9,17.77552056]
[1760323965107,3.495105,196.91,196.9,17.77552056]
[1760323965286,3.495105,196.91,196.86,0.2]
[1760323965486,2.775105,196.9,196.87,5.07949408]
[1760323965686,3.495105,196.89,196.87,5.07949408]
[1760323965887,3.495105,196.89,196.86,0.2]
[1760323965888,0.72,196.88,196.86,0.2]
[1760323966095,2.775105,196.87,196.86,5.2797521]
[1760323966403,24.295105,196.87,196.86,0.2]
[1760323967120,20.8,196.89,196.86,5.2797521]
[1760323967409,21.48,196.89,196.86,5.2797521]
[1760323967709,0.68,196.89,196.86,5.2797521]
[1760323967894,0.68,196.88,196.86,5.2797521]
[1760323968100,0.68,196.87,196.86,5.2797521]
[1760323969497,0.68,196.89,196.86,5.2797521]
[1760323969705,0.68,196.88,196.86,5.2797521]
[1760323970406,0.68,196.88,196.86,17.97913237]
[1760323972116,15.04412318,196.92,196.86,17.97913237]
[1760323972117,134.0,196.91,196.86,17.97913237]
[1760323972508,0.68,196.91,196.86,17.97913237]
[1760323973599,0.10193806,196.92,196.86,17.97913237]
[1760323973920,0.10193806,196.92,196.86,18.38913237]
[1760323974913,0.10193806,196.92,196.86,43.78789291]
[1760323975416,0.10193806,196.92,196.87,6.94183768]
[1760323975799,0.10193806,196.92,196.88,17.77732628]
[1760323976314,0.10676702,196.93,196.9,6.94183768]
[1760323976713,0.10676702,196.93,196.91,0.41]
[1760323977019,0.10676702,196.93,196.9,6.94183768]
[1760323977594,0.10676702,196.93,196.91,0.41]
[1760323978210,0.10676702,196.93,196.91,5.07846224]
[1760323978959,0.1115694,196.95,196.92,7.35183768]
[1760323979243,0.10815325,196.97,196.93,6.94183768]
[1760323979423,0.10815325,196.97,196.93,0.41]
[1760323979609,0.10815325,196.97,196.93,10.74030753]
[1760323979815,0.10815325,196.97,196.94,0.41]
[1760323980419,0.10815325,196.97,196.93,10.33030753]
[1760323980625,0.10815325,196.97,196.94,18.18191022]
[1760323980837,0.7,196.96,196.94,17.77191022]
[1760323981021,0.7,196.95,196.94,17.77191022]
[1760323981220,10.43846078,196.97,196.94,17.77191022]
[1760323981540,0.7,196.96,196.94,17.77191022]
[1760323982532,20.8,196.95,196.91,25.3923112]
[1760323983922,0.09964828,196.92,196.89,17.77642337]
[1760323984166,11.03030753,196.91,196.89,17.77642337]
[1760323984342,20.8,196.88,196.87,5.07949408]
[1760323984642,21.5,196.88,196.87,5.07949408]
[1760323985931,21.5,196.88,196.86,12.89883822]
[1760323985932,21.5,196.88,196.86,5.27973195]
[1760323986244,11.03030753,196.87,196.86,5.27973195]
[1760323986632,31.83030753,196.87,196.86,0.2]
[1760323986832,20.8,196.84,196.82,4.88]
[1760323987038,11.03030753,196.83,196.82,4.88]
[1760323988917,10.33030753,196.83,196.82,4.88]
[1760323989538,11.03030753,196.83,196.82,4.88]
[1760323991146,11.57647521,196.87,196.82,9.96078447]
[1760323991450,10.33030753,196.85,196.82,9.96078447]
[1760323991647,31.13030753,196.83,196.82,4.88]
[1760323991815,31.83030753,196.83,196.82,4.88]
[1760323996547,20.8,196.83,196.82,9.96078447]
[1760323996750,134.0,196.87,196.82,20.901092]
[1760323996952,134.0,196.87,196.84,10.33030753]
[1760323997248,134.0,196.87,196.86,10.33030753]
[1760323997548,134.0,196.87,196.85,10.33030753]
[1760323998551,134.0,196.87,196.86,5.0797521]
[1760323998552,144.33030753,196.87,196.86,5.0797521]
[1760323999052,145.03030753,196.87,196.86,5.0797521]
[1760323999641,145.03030753,196.87,196.84,5.0800121]
[1760323999844,11.03030753,196.86,196.84,5.0800121]
[1760324000145,0.7,196.85,196.84,5.0800121]
[1760324000427,0.7,196.85,196.81,17.78329287]
[1760324001930,134.0,196.87,196.82,0.61]
[1760324002949,134.7,196.87,196.81,53.51881354]
[1760324003852,0.09219833,196.82,196.81,17.78329287]
[1760324004030,0.09219833,196.82,196.81,18.39329287]
[1760324007939,0.09870167,196.83,196.81,18.39329287]
[1760324009635,0.1109731,196.85,196.82,0.61]
[1760324009838,0.1109731,196.85,196.83,10.94030753]
[1760324011246,0.0981357,196.87,196.84,10.94030753]
[1760324011557,0.66,196.96,196.87,17.77822928]
[1760324011760,0.66,196.96,196.9,4.33496758]
[1760324012332,0.66,197.0,196.93,4.33496758]
[1760324012556,0.66,197.0,196.95,4.33496758]
[1760324012753,0.66,196.99,196.95,4.33496758]
[1760324012939,47.99249357,197.01,196.95,4.33496758]
[1760324013135,0.66,196.98,196.95,4.33496758]
[1760324013455,0.66,196.98,196.93,4.33496758]
[1760324013629,52.32746115,197.01,196.88,10.87647521]
[1760324013630,0.66,196.97,196.91,25.39213405]
[1760324013836,4.33496758,196.99,196.91,5.07846224]
[1760324013837,4.33496758,196.95,196.91,5.07846224]
[1760324014141,0.66,196.94,196.91,5.07846224]
[1760324014452,0.66,196.93,196.91,5.07846224]
[1760324015144,0.66,196.98,196.92,4.33496758]
[1760324015333,0.66,196.98,196.94,4.33496758]
[1760324015534,0.66,196.98,196.95,10.32880481]
[1760324015859,0.66,196.98,196.94,10.32880481]
[1760324016059,0.66,196.98,196.93,10.32880481]
[1760324016257,0.66,196.98,196.94,10.32880481]
[1760324017460,0.66,196.98,196.95,17.77100787]
[1760324018862,0.66,196.98,196.93,10.32880481]
[1760324019748,0.66,196.98,196.94,17.77191022]
[1760324021853,0.66,197.02,196.95,10.32880481]
[1760324022060,0.66,197.02,196.97,10.32880481]
[1760324022253,20.8,197.01,196.97,10.32880481]
[1760324022451,21.46,197.01,196.97,10.32880481]
[1760324023166,21.46,197.01,196.92,25.39090296]
[1760324023167,58.32129838,197.05,196.98,28.09710615]
[1760324023354,0.66,197.03,196.98,28.09710615]
[1760324023659,21.46,197.02,196.98,28.09710615]
[1760324023853,0.0949768,196.99,196.98,28.09710615]
[1760324024369,0.10068555,197.01,196.98,28.70710615]
[1760324024561,0.10068555,197.01,197.0,10.32880481]
[1760324024749,0.10579776,197.02,197.01,10.32880481]
[1760324024940,0.10579776,197.02,197.01,10.93880481]
[1760324025145,0.10579776,197.02,196.98,17.76830134]
[1760324025548,0.10579776,197.02,197.0,10.32880481]
[1760324026065,0.10579776,197.02,197.01,10.93880481]
[1760324026365,0.10579776,197.02,197.01,16.01468928]
[1760324026551,0.10579776,197.02,197.01,15.40468928]
[1760324026745,0.10579776,197.02,197.01,5.07588447]
[1760324027462,0.10579776,197.02,197.01,15.40468928]
[1760324027662,0.10721554,197.03,197.01,16.01468928]
[1760324027862,0.10721554,197.03,197.02,10.32880481]
[1760324028858,0.10721554,197.03,197.02,15.40443164]
[1760324030862,0.10258979,197.04,197.02,16.01443164]
[1760324031170,0.09535482,197.05,197.04,10.32880481]
[1760324032854,0.09535482,197.05,197.04,5.07511165]
[1760324033763,0.09535482,197.05,197.04,15.40391646]
[1760324034476,1e-08,197.05,197.04,16.01391646]
[1760324034677,0.1,197.18,197.07,20.8]
[1760324034853,0.79,197.18,197.14,10.32880481]
[1760324035053,0.1,197.18,197.16,10.32880481]
[1760324035454,0.1,197.18,197.17,10.32880481]
[1760324035655,0.1,197.18,197.17,4.32315443]
[1760324036760,0.1,197.18,197.17,9.39491991]
[1760324037581,0.1,197.18,197.17,15.37685159]
[1760324039571,0.1,197.2,197.17,11.98937419]
[1760324039572,1e-08,197.19,197.17,11.98937419]
[1760324039778,1e-08,197.2,197.18,6.91760871]
[1760324039965,1e-08,197.2,197.19,6.91760871]
[1760324040760,1e-08,197.2,197.19,11.98885978]
[1760324041158,1e-08,197.21,197.19,5.07125107]
[1760324041365,1e-08,197.21,197.2,6.91760871]
[1760324043081,1e-08,197.21,197.2,11.98860262]
[1760324044161,0.09672944,197.24,197.21,6.91760871]
[1760324044362,0.10175429,197.25,197.23,6.91760871]
[1760324044571,0.10175429,197.25,197.24,6.91760871]
[1760324045284,0.10175429,197.25,197.24,11.98757423]
[1760324045578,0.7841373,197.28,197.24,11.98757423]
[1760324045779,0.0941373,197.28,197.25,6.91760871]
[1760324046367,1e-08,197.28,197.25,7.01760871]
[1760324046581,1e-08,197.28,197.27,6.91760871]
[1760324046974,1e-08,197.29,197.27,6.91760871]
[1760324047281,1e-08,197.29,197.28,11.98654626]
[1760324048078,0.69000001,197.29,197.28,5.06893755]
[1760324049282,0.69000001,197.29,197.27,5.0691945]
[1760324049974,1e-08,197.29,197.27,5.0691945]
[1760324050286,1e-08,197.29,197.27,11.98680321]
[1760324051178,1e-08,197.29,197.06,25.37170232]
[1760324051179,7.60760871,197.28,197.06,25.37170232]
[1760324051378,7.60760871,197.28,197.05,25.60402789]
[1760324051379,6.91760871,197.22,197.12,0.1]
[1760324051568,6.91760871,197.22,197.14,6.91760871]
[1760324051769,7.60760871,197.21,197.14,10.87647521]
[1760324051966,7.60760871,197.21,197.14,17.79408392]
[1760324052266,0.69,197.21,197.13,0.1]
[1760324052477,0.69,197.21,197.16,6.91760871]
[1760324052677,0.69,197.2,197.15,6.91760871]
[1760324052873,7.60760871,197.19,197.12,6.91760871]
[1760324053082,0.69,197.18,197.12,6.91760871]
[1760324053285,0.69,197.18,197.13,24.67238981]
[1760324053785,0.69,197.18,197.14,6.91760871]
[1760324053988,17.79408392,197.28,197.14,6.91760871]
[1760324053989,6.91760871,197.25,197.17,6.91760871]
[1760324054172,0.69,197.24,197.2,6.91760871]
[1760324054587,6.91760871,197.28,197.21,6.91760871]
[1760324054793,0.69,197.27,197.2,0.1]
[1760324054974,0.69,197.27,197.24,6.91760871]
[1760324055289,0.69,197.27,197.2,0.1]
[1760324055290,0.69,197.27,197.25,6.91760871]
[1760324055868,0.79661954,197.3,197.26,6.91760871]
[1760324056093,0.79661954,197.3,197.27,6.91760871]
[1760324056468,0.69000001,197.29,197.27,6.91760871]
[1760324056698,1e-08,197.29,197.28,6.91760871]
[1760324057292,1e-08,197.29,197.28,11.98654626]
[1760324063405,1e-08,197.29,197.26,12.67337964]
[1760324063694,0.69,197.28,197.26,12.67337964]
[1760324063907,7.60760871,197.27,197.25,5.06970849]
[1760324064078,0.69,197.26,197.25,5.06970849]
[1760324065883,0.69,197.26,197.23,12.67508964]
[1760324066080,0.09643082,197.29,197.25,6.91760871]
[1760324066293,0.09229015,197.31,197.28,6.91760871]
[1760324066604,0.09229015,197.31,197.3,6.91760871]
[1760324068001,0.09229015,197.31,197.3,11.98603243]
[1760324070404,0.1023422,197.32,197.3,11.98603243]
[1760324070597,0.1023422,197.32,197.31,6.91760871]
[1760324071011,0.1023422,197.32,197.31,11.98577555]
[1760324072290,0.1023422,197.32,197.31,5.06816684]
[1760324072605,0.1023422,197.32,197.31,11.98577555]
[1760324074013,0.7823422,197.32,197.3,5.06842372]
[1760324075099,0.7823422,197.32,197.3,6.91760871]
[1760324075606,0.1023422,197.32,197.3,6.91760871]
[1760324076411,0.7823422,197.32,197.3,6.91760871]
[1760324076813,0.68,197.31,197.28,12.67207834]
[1760324076996,0.1023422,197.32,197.28,12.67207834]
[1760324077314,0.68,197.31,197.28,17.74101589]
[1760324078021,0.68,197.3,197.28,17.74101589]
[1760324078317,0.68,197.3,197.28,24.6586246]
[1760324078489,0.68,197.29,197.28,17.74101589]
[1760324079233,0.68,197.29,197.28,12.67207834]
[1760324080999,0.1023422,197.32,197.29,10.87647521]
[1760324081195,0.1023422,197.32,197.31,6.91760871]
[1760324081395,0.1023422,197.32,197.31,11.98577555]
[1760324082905,0.7823422,197.32,197.31,5.06816684]
[1760324083115,28.49995091,197.32,197.29,5.06846185]
[1760324083399,28.49995091,197.32,197.27,12.67274398]
[1760324083400,7.59760871,197.31,197.27,12.67274398]
[1760324083605,0.68,197.3,197.27,12.67274398]
[1760324083925,6.91760871,197.28,197.25,5.06970849]
[1760324084236,0.69,197.27,197.25,5.06970849]
[1760324084431,0.69,197.26,197.25,17.74397971]
[1760324084607,0.69,197.26,197.25,5.06970849]
[1760324085410,0.69,197.26,197.22,17.74637357]
[1760324087326,0.69,197.25,197.22,17.74637357]
[1760324087521,0.69,197.24,197.22,17.74637357]
[1760324088501,7.60760871,197.26,197.22,12.67589391]
[1760324088808,0.69,197.25,197.22,12.67589391]
[1760324089627,0.69,197.24,197.22,12.67589391]
[1760324089921,0.69,197.23,197.22,12.67589391]
[1760324090810,7.60760871,197.23,197.21,5.07073677]
[1760324091029,7.60760871,197.22,197.19,5.07101475]
[1760324091231,0.69,197.21,197.16,5.07202272]
[1760324091404,20.8,197.23,197.16,5.07202272]
[1760324091405,6.91760871,197.19,197.16,5.07202272]
[1760324091608,6.91760871,197.19,197.15,12.68028287]
[1760324091805,7.60760871,197.18,197.15,12.68028287]
[1760324092026,0.69,197.17,197.15,12.68028287]
[1760324092221,20.8,197.15,197.13,5.0727946]
[1760324092436,0.69,197.14,197.13,5.0727946]
[1760324092822,7.60760871,197.14,197.13,5.0727946]
[1760324093721,7.60760871,197.14,197.12,5.07305194]
[1760324093924,0.69,197.13,197.12,5.07305194]
[1760324097011,20.8,197.16,197.12,24.67329052]
[1760324097425,21.46,197.16,197.12,24.67329052]
[1760324097814,0.66,197.16,197.12,24.67329052]
[1760324098537,5.0705939,197.22,197.15,6.91760871]
[1760324098538,6.91760871,197.22,197.15,6.91760871]
[1760324098736,0.66,197.2,197.15,6.91760871]
[1760324098929,0.66,197.19,197.15,6.91760871]
[1760324099239,0.66,197.18,197.14,6.91760871]
[1760324099640,0.66,197.17,197.15,17.75297995]
[1760324100513,6.91760871,197.2,197.15,17.75297995]
[1760324100837,6.91760871,197.22,197.15,17.75297995]
[1760324101027,7.57760871,197.19,197.15,17.75297995]
[1760324101349,6.91760871,197.17,197.15,5.07227998]
[1760324101643,10.97402895,197.16,197.12,17.75530329]
[1760324101846,10.31402895,197.14,197.12,5.07305194]
[1760324102052,0.66,197.13,197.12,5.07305194]
[1760324103553,0.66,197.18,197.12,28.06971076]
[1760324103729,10.31402895,197.16,197.12,17.75568181]
[1760324103929,0.09747072,197.13,197.12,17.75568181]
[1760324107545,0.75747072,197.13,197.12,17.75568181]
[1760324108225,0.09747072,197.13,197.12,17.75568181]
[1760324108529,0.11103655,197.14,197.12,17.75568181]
[1760324108721,1e-08,197.14,197.13,10.41402895]
[1760324108920,0.09842884,197.16,197.13,21.29050416]
[1760324109123,0.10682124,197.18,197.15,10.31402895]
[1760324109323,0.10682124,197.18,197.16,10.31402895]